Workbook

Sheet Pasiūlymas
A2: PIKIMO SĄLYGŲ PRIEDAS "PASIŪLYMO FORMA"
A4: HEMODIALIZĖS APARATAI IR PRIEMONĖS DIALIZEI
A6: Kam: | B6: LSMU Kauno ligoninė
A8: Data: | B8: 2021 08 30
A9: Nr.:
A10: Vieta: | B10: Vilnius
A12: Tiekėjo pavadinimas / Ūkio subjektų grupės nariai: | C12: UAB B.Braun Avitum
A13: Tiekėjo kodas (-ai): | C13: 300556854
A14: Tiekėjo adresas (-ai): | C14: Miškinių g. 6a, LT-04132 Vilnius, korespondencijos adresas: Viršuliškių skg. 34-1, LT-05132 Vilnius
A15: Tiekėjo PVM mokėtojo kodas(-ai): | C15: LT100002499513
A16: Tiekėjo / Ūkio subjektų grupės atsakingo partnerio sąskaitos numeris, banko pavadinimas ir banko kodas (-ai): | C16: A.s. LT452140030000446589 AB bankas „Luminor“, banko kodas 40100
A17: Asmens atsakingo už pasiūlymą vardas, pavardė: | C17: Vincas Vaitiekūnas
A18: Asmens atsakingo už pasiūlymą telefono numeris, el. pašto adresas: | C18: vincas.vaitiekunas@bbraun.com; +37061557170
A19: Tiekėjo / Ūkio subjektų grupės, laimėjimo atveju, pasirašančio sutartį asmens vardas, pavardė, pareigos: | C19: Generalinė direktorė - Rasas Narkienė
A20: Tiekėjo / Ūkio subjektų grupės, laimėjimo atveju, už sutarties vykdymą atsakingo asmens vardas, pavardė, telefono numeris, elektroninio pašto adresas: | C20: Pardavimų vadybininkas - Vincas Vaitiekūnas; +37061557170; vincas.vaitiekunas@bbraun.com Logistikos vadybininkas - Kipras Laurynas; +37065575852; kipras.laurynas@bbraun.com
A21: (1) Tiekėjo / Ūkio subjektų grupės narių, (2) ūkio subjektų, kurių pajėgumais remiamasi, ir (3) jei pašalinimo pagrindai taikomi visiems subtiekėjams - subtiekėjų, kolegialaus priežiūros organo (Stebėtojų tarybos) ir (ar) kolegialaus valdymo organo (Valdybos) narių sąrašas (jei sudaryta) ir (ar) asmuo, kuriam suteikti VPĮ 46 str. 2 d. 2 p. numatyti įgaliojimai | G21: =IF((SUMPRODUCT(--(C21=""))>0), "Privaloma užpildyti, kai taikomi pašalinimo pagrindai", "") -> Privaloma užpildyti, kai taikomi pašalinimo pagrindai
A23: Tiekėjo patvirtinimai:
A24: 1. Šiuo pasiūlymu pažymime, kad sutinkame su visomi pirkimo sąlygomis, nustatytomis:
A25: 1.1. viešojo pirkimo dokumentuose;
A26: 1.2. kituose pirkimo dokumentuose (jų paaiškinimuose, papildymuose).
A27: 2. Patvirtiname, kad informacija ir duomenys, pateikti pasiūlyme, yra teisingi ir apima viską, ko reikia tinkamam sutarties įvykdymui
A28: 3. Patvirtiname, kad jei pasiūlyme nenurodyti kolegialaus priežiūros/valdymo organų nariai, šie organai juridiniuose asmenyse nėra sudaryti (taikoma, kai pirkimo dokumentuose nustatyti pašalinimo pagrindai).
A29: 4. Pasiūlymas galioja iki termino, nustatyto pirkimo dokumentuose, pabaigos.
A32: 1. DALIS | B32: HEMODIALIZĖS PRIEMONĖS IR JOMS TINKANTYS APARATAI
A34: Tiekėjo pasiūlymas:
A35: Nr. | B35: Pavadinimas | C35: Kiekis | D35: Mato vienetas | E35: Kaina be PVM, Eur | F35: Suma be PVM, Eur
A36: 1. | B36: Hemodializės priemonės ir joms tinkantys aparatai
A37: 1.1. | B37: Kraujo magistralių, tinkančių siūlomiems aparatams, komplektas | C37: 4500 | D37: kompl. | F37: =IF(ISBLANK(E37),"", PRODUCT(C37,E37)) -> 
A38: 1.2. | B38: Dializatoriai. Sintetinė membrana , plotas 1,6-1,7, KUF 20-22 | C38: 1000 | D38: vnt.
A39: 1.3. | B39: Dializatoriai. Sintetinė membrana,plotas 1,8-2,2, KUF 23-29 | C39: 3500 | D39: vnt.
A40: 1.4. | B40: Sausos sodos kolonėlės tinkančios siūlomiems aparatams | C40: 4500 | D40: vnt.
A41: 1.5. | B41: Citrinos rūgštis 50% | C41: 1000 | D41: L
A42: 1.6. | B42: Pirogeninis dializuojančio tirpalo filtras su sintetine membrana, su jungtimis tinkančiomis aparatui | C42: 50 | D42: vnt.
A43: 1.7. | B43: Priemonėms tinkantys hemodializės aparatai panaudai visam sutarties laikotarpiui (3 metams). | C43: 5 | D43: vnt.
E44: Suma be PVM | F44: =IF((SUMPRODUCT(--(F37:F43=""))>0), "", SUM(F37:F43)) ->  | G44: =IF((SUMPRODUCT(--(F37:F43=""))>0), "Neužpildytos visų objektų kainos", "") -> Neužpildytos visų objektų kainos
E45: PVM suma
E46: Suma su PVM | F46: =IF(ISBLANK(F45), "", SUM(F44:F45)) -> 
A50: 2. DALIS | B50: FISTULINĖS ADATOS
A52: Tiekėjo pasiūlymas:
A53: Nr. | B53: Pavadinimas | C53: Kiekis | D53: Mato vienetas | E53: Kaina be PVM, Eur | F53: Suma be PVM, Eur
A54: 2. | B54: Fistulinės adatos
A55: 2.1. | B55: Fistulinės adatos arterinės 15G | C55: 5000 | D55: vnt. | F55: =IF(ISBLANK(E55),"", PRODUCT(C55,E55)) -> 
A56: 2.2. | B56: Fistulinės adatos veninės15G | C56: 5000 | D56: vnt. | F56: =IF(ISBLANK(E56),"", PRODUCT(C56,E56)) -> 
A57: 2.3. | B57: Fistulinės adatos arterinės 16G | C57: 5000 | D57: vnt. | F57: =IF(ISBLANK(E57),"", PRODUCT(C57,E57)) -> 
A58: 2.4. | B58: Fistulinės adatos veninės16G | C58: 5000 | D58: vnt. | F58: =IF(ISBLANK(E58),"", PRODUCT(C58,E58)) -> 
E59: Suma be PVM | F59: =IF((SUMPRODUCT(--(F55:F58=""))>0), "", SUM(F55:F58)) ->  | G59: =IF((SUMPRODUCT(--(F55:F58=""))>0), "Neužpildytos visų objektų kainos", "") -> Neužpildytos visų objektų kainos
E60: PVM suma
E61: Suma su PVM | F61: =IF(ISBLANK(F60), "", SUM(F59:F60)) -> 
A65: 3. DALIS | B65: ARTERIO – VENINĖS FISTULĖS KATETERIAI SU ADATA 16G
A67: Tiekėjo pasiūlymas:
A68: Nr. | B68: Pavadinimas | C68: Kiekis | D68: Mato vienetas | E68: Kaina be PVM, Eur | F68: Suma be PVM, Eur
A69: 3. | B69: Arterio – veninės fistulės kateteriai su adata 16G
A70: 3.1. | B70: Arterio – veninės fistulės kateteriai su adata 16G | C70: 4000 | D70: vnt. | F70: =IF(ISBLANK(E70),"", PRODUCT(C70,E70)) -> 
E71: Suma be PVM | F71: =IF(F70="","",SUM(F70:F70)) ->  | G71: =IF(F70="","Neužpildytos visos objektų kainos","") -> Neužpildytos visos objektų kainos
E72: PVM suma
E73: Suma su PVM | F73: =IF(ISBLANK(F72), "", SUM(F71:F72)) -> 
A77: 4. DALIS | B77: KRAUJO MAGISTRALĖS TINKANČIOS NIKKISO DBB 06-07 APARATAMS
A79: Tiekėjo pasiūlymas:
A80: Nr. | B80: Pavadinimas | C80: Kiekis | D80: Mato vienetas | E80: Kaina be PVM, Eur | F80: Suma be PVM, Eur
A81: 4. | B81: Kraujo magistralės tinkančios Nikkiso DBB 06-07 aparatams
A82: 4.1. | B82: Kraujo magistralės tinkančios Nikkiso DBB 06-07 aparatams | C82: 4500 | D82: kompl. | F82: =IF(ISBLANK(E82),"", PRODUCT(C82,E82)) -> 
E83: Suma be PVM | F83: =IF(F82="","",SUM(F82:F82)) ->  | G83: =IF(F82="","Neužpildytos visos objektų kainos","") -> Neužpildytos visos objektų kainos
E84: PVM suma
E85: Suma su PVM | F85: =IF(ISBLANK(F84), "", SUM(F83:F84)) -> 
A89: 5. DALIS | B89: APIROGENINIAI FILTRAI TINKANTYS NIKKISO DBB06-07 APARATAMS
A91: Tiekėjo pasiūlymas:
A92: Nr. | B92: Pavadinimas | C92: Kiekis | D92: Mato vienetas | E92: Kaina be PVM, Eur | F92: Suma be PVM, Eur
A93: 5. | B93: Apirogeniniai filtrai tinkantys Nikkiso DBB06-07 aparatams
A94: 5.1. | B94: Apirogeniniai filtrai tinkantys Nikkiso DBB06-07 aparatams | C94: 50 | D94: vnt. | F94: =IF(ISBLANK(E94),"", PRODUCT(C94,E94)) -> 
E95: Suma be PVM | F95: =IF(F94="","",SUM(F94:F94)) ->  | G95: =IF(F94="","Neužpildytos visos objektų kainos","") -> Neužpildytos visos objektų kainos
E96: PVM suma
E97: Suma su PVM | F97: =IF(ISBLANK(F96), "", SUM(F95:F96)) -> 
A101: 6. DALIS | B101: KONCENENTRATAI BIKARBONATINEI DIALIZEI
A103: Tiekėjo pasiūlymas:
A104: Nr. | B104: Pavadinimas | C104: Kiekis | D104: Mato vienetas | E104: Kaina be PVM, Eur | F104: Suma be PVM, Eur
A105: 6. | B105: Koncenentratai bikarbonatinei dializei
A106: 6.1. | B106: Rūgštus koncentratas bikarbonatinei dializei K-1,0 mmol/lCa-1,5 mmol/l | C106: 200 | D106: L | E106: 0.41 | F106: =IF(ISBLANK(E106),"", PRODUCT(C106,E106)) -> 82
A107: 6.2. | B107: Rūgštus koncentratas bikarbonatinei dializei K-2,0 mmol/lCa-1,5 mmol/l | C107: 25000 | D107: L | E107: 0.41 | F107: =IF(ISBLANK(E107),"", PRODUCT(C107,E107)) -> 10250
A108: 6.3. | B108: Rūgštus koncentratas bikarbonatinei dializei K-2,0 mmol/lCa-1,25 mmol/ | C108: 7000 | D108: L | E108: 0.41 | F108: =IF(ISBLANK(E108),"", PRODUCT(C108,E108)) -> 2870
A109: 6.4. | B109: Rūgštus koncentratas bikarbonatinei dializei K-3,0 mmol/lCa-1,5 mmol/l | C109: 8000 | D109: L | E109: 0.41 | F109: =IF(ISBLANK(E109),"", PRODUCT(C109,E109)) -> 3280
A110: 6.5. | B110: Bazinis koncentrato 8,4 % NaHCO3 tirpalas bikarbonatinei dializei | C110: 2000 | D110: L | E110: 0.41 | F110: =IF(ISBLANK(E110),"", PRODUCT(C110,E110)) -> 820
E111: Suma be PVM | F111: =IF((SUMPRODUCT(--(F106:F110=""))>0), "", SUM(F106:F110)) -> 17302 | G111: =IF((SUMPRODUCT(--(F106:F110=""))>0), "Neužpildytos visų objektų kainos", "") -> 
E112: PVM suma | F112: =F111*1.05-F111 -> 865.1
E113: Suma su PVM | F113: =IF(ISBLANK(F112), "", SUM(F111:F112)) -> 18167.1
A117: 7. DALIS | B117: SAUSOS SODOS KOLONĖLĖS TINKANČIOS SIŪLOMIEMS APARATAMS
A119: Tiekėjo pasiūlymas:
A120: Nr. | B120: Pavadinimas | C120: Kiekis | D120: Mato vienetas | E120: Kaina be PVM, Eur | F120: Suma be PVM, Eur
A121: 7. | B121: Sausos sodos kolonėlės tinkančios siūlomiems aparatams
A122: 7.1. | B122: Sausos sodos kolonėlės tinkančios siūlomiems aparatams | C122: 3000 | D122: vnt. | F122: =IF(ISBLANK(E122),"", PRODUCT(C122,E122)) -> 
E123: Suma be PVM | F123: =IF(F122="","",SUM(F122:F122)) ->  | G123: =IF(F122="","Neužpildytos visos objektų kainos","") -> Neužpildytos visos objektų kainos
E124: PVM suma
E125: Suma su PVM | F125: =IF(ISBLANK(F124), "", SUM(F123:F124)) -> 
A129: 8. DALIS | B129: DEZINFEKUOJANTIS TIRPALAS
A131: Tiekėjo pasiūlymas:
A132: Nr. | B132: Pavadinimas | C132: Kiekis | D132: Mato vienetas | E132: Kaina be PVM, Eur | F132: Suma be PVM, Eur
A133: 8. | B133: Dezinfekuojantis tirpalas
A134: 8.1. | B134: Dezinfekuojantis tirpalas, tinkantis Nikkiso DBB06-07 aparatų cheminei dezinfekcijai | C134: 150 | D134: L | F134: =IF(ISBLANK(E134),"", PRODUCT(C134,E134)) -> 
E135: Suma be PVM | F135: =IF(F134="","",SUM(F134:F134)) ->  | G135: =IF(F134="","Neužpildytos visos objektų kainos","") -> Neužpildytos visos objektų kainos
E136: PVM suma
E137: Suma su PVM | F137: =IF(ISBLANK(F136), "", SUM(F135:F136)) -> 
A141: 9. DALIS | B141: RINKINYS CENTRINĖS VENOS KATETERIZAVIMUI HEMODIALIZĖS PROCEDŪRAI ATLIKTI
A143: Tiekėjo pasiūlymas:
A144: Nr. | B144: Pavadinimas | C144: Kiekis | D144: Mato vienetas | E144: Kaina be PVM, Eur | F144: Suma be PVM, Eur
A145: 9. | B145: Rinkinys centrinės venos kateterizavimui hemodializės procedūrai atlikti
A146: 9.1. | B146: Rinkinys centrinės venos kateterizavimui hemodializės procedūrai atlikti (dvikanalis) | C146: 120 | D146: vnt. | F146: =IF(ISBLANK(E146),"", PRODUCT(C146,E146)) -> 
E147: Suma be PVM | F147: =IF(F146="","",SUM(F146:F146)) ->  | G147: =IF(F146="","Neužpildytos visos objektų kainos","") -> Neužpildytos visos objektų kainos
E148: PVM suma
E149: Suma su PVM | F149: =IF(ISBLANK(F148), "", SUM(F147:F148)) -> 
A153: 10. DALIS | B153: RINKINYS CENTRINĖS VENOS KATETERIZAVIMUI HEMODIALIZĖS PROCEDŪRAI ATLIKTI
A155: Tiekėjo pasiūlymas:
A156: Nr. | B156: Pavadinimas | C156: Kiekis | D156: Mato vienetas | E156: Kaina be PVM, Eur | F156: Suma be PVM, Eur
A157: 10. | B157: Rinkinys centrinės venos kateterizavimui hemodializės procedūrai atlikti
A158: 10.1. | B158: Rinkinys centrinės venos kateterizavimui hemodializės procedūrai atlikti (trikanalis) | C158: 200 | D158: vnt. | E158: 29 | F158: =IF(ISBLANK(E158),"", PRODUCT(C158,E158)) -> 5800
E159: Suma be PVM | F159: =IF(F158="","",SUM(F158:F158)) -> 5800 | G159: =IF(F158="","Neužpildytos visos objektų kainos","") -> 
E160: PVM suma | F160: =F159*1.05-F159 -> 290
E161: Suma su PVM | F161: =IF(ISBLANK(F160), "", SUM(F159:F160)) -> 6090
A165: 11. DALIS | B165: KAMŠTELIAI INTRAVENINIAM KATETERIUI.
A167: Tiekėjo pasiūlymas:
A168: Nr. | B168: Pavadinimas | C168: Kiekis | D168: Mato vienetas | E168: Kaina be PVM, Eur | F168: Suma be PVM, Eur
A169: 11. | B169: Kamšteliai intraveniniam kateteriui.
A170: 11.1. | B170: Kamšteliai intraveniniam kateteriui. Vienkartiniai, sterilūs | C170: 3000 | D170: vnt. | F170: =IF(ISBLANK(E170),"", PRODUCT(C170,E170)) -> 
E171: Suma be PVM | F171: =IF(F170="","",SUM(F170:F170)) ->  | G171: =IF(F170="","Neužpildytos visos objektų kainos","") -> Neužpildytos visos objektų kainos
E172: PVM suma
E173: Suma su PVM | F173: =IF(ISBLANK(F172), "", SUM(F171:F172)) -> 
A177: 12. DALIS | B177: RINKINYS FISTULĖS PUNKCIJAI
A179: Tiekėjo pasiūlymas:
A180: Nr. | B180: Pavadinimas | C180: Kiekis | D180: Mato vienetas | E180: Kaina be PVM, Eur | F180: Suma be PVM, Eur
A181: 12. | B181: Rinkinys fistulės punkcijai
A182: 12.1. | B182: Rinkinys HD atlikti per arterioveninę jungtį | C182: 8000 | D182: kompl. | E182: 0.94 | F182: =IF(ISBLANK(E182),"", PRODUCT(C182,E182)) -> 7520
E183: Suma be PVM | F183: =IF(F182="","",SUM(F182:F182)) -> 7520 | G183: =IF(F182="","Neužpildytos visos objektų kainos","") -> 
E184: PVM suma | F184: =F183*1.05-F183 -> 376
E185: Suma su PVM | F185: =IF(ISBLANK(F184), "", SUM(F183:F184)) -> 7896
A189: 13. DALIS | B189: RINKINYS HD PAJUNGIMUI IR ATJUNGIMUI PER CENTRINĖS VENOS KATETERĮ
A191: Tiekėjo pasiūlymas:
A192: Nr. | B192: Pavadinimas | C192: Kiekis | D192: Mato vienetas | E192: Kaina be PVM, Eur | F192: Suma be PVM, Eur
A193: 13. | B193: Rinkinys HD pajungimui ir atjungimui per centrinės venos kateterį
A194: 13.1. | B194: Rinkinys HD pajungimui ir atjungimui per centrinės venos kateterį | C194: 3000 | D194: kompl. | E194: 1.28 | F194: =IF(ISBLANK(E194),"", PRODUCT(C194,E194)) -> 3840
E195: Suma be PVM | F195: =IF(F194="","",SUM(F194:F194)) -> 3840 | G195: =IF(F194="","Neužpildytos visos objektų kainos","") -> 
E196: PVM suma | F196: =F195*1.05-F195 -> 192
E197: Suma su PVM | F197: =IF(ISBLANK(F196), "", SUM(F195:F196)) -> 4032
A201: 14. DALIS | B201: ADHEZYVINIS TVARSTIS-MAIŠELIS
A203: Tiekėjo pasiūlymas:
A204: Nr. | B204: Pavadinimas | C204: Kiekis | D204: Mato vienetas | E204: Kaina be PVM, Eur | F204: Suma be PVM, Eur
A205: 14. | B205: Adhezyvinis tvarstis-maišelis
A206: 14.1. | B206: Adhezyvinis tvarstis-maišelis | C206: 2000 | D206: vnt. | F206: =IF(ISBLANK(E206),"", PRODUCT(C206,E206)) -> 
E207: Suma be PVM | F207: =IF(F206="","",SUM(F206:F206)) ->  | G207: =IF(F206="","Neužpildytos visos objektų kainos","") -> Neužpildytos visos objektų kainos
E208: PVM suma
E209: Suma su PVM | F209: =IF(ISBLANK(F208), "", SUM(F207:F208)) -> 
A213: 15. DALIS | B213: TVARSTIS IMPREGNUOTAS NACL
A215: Tiekėjo pasiūlymas:
A216: Nr. | B216: Pavadinimas | C216: Kiekis | D216: Mato vienetas | E216: Kaina be PVM, Eur | F216: Suma be PVM, Eur
A217: 15. | B217: Tvarstis impregnuotas Nacl
A218: 15.1. | B218: Tvarstis impregnuotas Nacl | C218: 1000 | D218: vnt. | F218: =IF(ISBLANK(E218),"", PRODUCT(C218,E218)) -> 
E219: Suma be PVM | F219: =IF(F218="","",SUM(F218:F218)) ->  | G219: =IF(F218="","Neužpildytos visos objektų kainos","") -> Neužpildytos visos objektų kainos
E220: PVM suma
E221: Suma su PVM | F221: =IF(ISBLANK(F220), "", SUM(F219:F220)) -> 
A225: 16. DALIS | B225: DIALIZATORIAI
A227: Tiekėjo pasiūlymas:
A228: Nr. | B228: Pavadinimas | C228: Kiekis | D228: Mato vienetas | E228: Kaina be PVM, Eur | F228: Suma be PVM, Eur
A229: 16. | B229: Dializatoriai
A230: 16.1. | B230: Dializatoriai . Celiuliozės membrana , plotas 1,7-1,9,KUF 14-17 | C230: 4000 | D230: vnt. | F230: =IF(ISBLANK(E230),"", PRODUCT(C230,E230)) -> 
E231: Suma be PVM | F231: =IF(F230="","",SUM(F230:F230)) ->  | G231: =IF(F230="","Neužpildytos visos objektų kainos","") -> Neužpildytos visos objektų kainos
E232: PVM suma
E233: Suma su PVM | F233: =IF(ISBLANK(F232), "", SUM(F231:F232)) -> 
A237: 17. DALIS | B237: DIALIZATORIAI
A239: Tiekėjo pasiūlymas:
A240: Nr. | B240: Pavadinimas | C240: Kiekis | D240: Mato vienetas | E240: Kaina be PVM, Eur | F240: Suma be PVM, Eur
A241: 17. | B241: Dializatoriai
A242: 17.1. | B242: Dializatoriai. Polisulfono pagrindu membrana,plotas 1,8 -2,1 , KUF 70 -115 | C242: 1000 | D242: vnt. | E242: 7 | F242: =IF(ISBLANK(E242),"", PRODUCT(C242,E242)) -> 7000
E243: Suma be PVM | F243: =IF(F242="","",SUM(F242:F242)) -> 7000 | G243: =IF(F242="","Neužpildytos visos objektų kainos","") -> 
E244: PVM suma | F244: =F243*1.05-F243 -> 350
E245: Suma su PVM | F245: =IF(ISBLANK(F244), "", SUM(F243:F244)) -> 7350

Sheet Subtiekėjai ir priedai
A2: Ūkio subjektai (įskaitant kvazisubtiekėjus - fiziniai asmenys, kuriuos ketinama įdarbinti pirkimo laimėjimo atveju), kurių pajėgumais tiekėjas remiasi, kad atitiktų keliamus kvalifikacijos reikalavimus:
A5: Pavadinimas* | C5: Kodas, adresas | F5: Perduodama veikla | I5: Perduodamos veiklos dalis nuo visos pirkimo sutarties (Eur arba %) | K5: Kval. Reikalavimo Nr.
A17: Subtiekėjams / subteikėjams / subrangovams numatomos perduoti veiklos (privaloma nurodyti) ir šių ūkio subjektų pavadinimai (jei žinomi):
A19: Pavadinimas | C19: Kodas, adresas | F19: Perduodama veikla* | I19: Perduodamos veiklos dalis nuo visos pirkimo sutarties (Eur arba %)
A33: Kartu su pasiūlymu pateikiami šie dokumentai:
A35: Nr. | B35: Dokumento pavadinimas | H35: Dokumentas yra konfidencialus? Taip/Ne
A36: 1 | B36: Jungtinės veiklos kopija (jei taikoma) | H36: Ne
A37: 2 | B37: Europos bendrasis viešųjų pirkimų dokumentas | H37: Ne
A38: 3 | B38: Subtiekimo sutartis, ketinimų protokolas, preliminarios sutartys ar kiti dokumentai, patvirtinantys, kad laimėjus pirkimą tiekėjui bus prieinami kitų ūkio subjektų ištekliai (jei pasitelkiami kvalifikacijos atitikimui) | H38: -
A39: 4 | B39: Prekės pavyzdys | H39: Ne
A40: 5. | B40: Katalogas 6 p.d. | H40: Taip
A41: 6. | B41: Katalogas 10 p.d. | H41: Taip
A42: 7. | B42: Katalogas 17 p.d. | H42: Taip
A43: 8. | B43: B.Braun įgaliojimas 2021 | H43: Ne
A44: 9. | B44: Bendras EC sertifikatas priemonėms | H44: Ne
A48: Pasiūlyme nurodyta Prekės kaina, išskyrus jos sudedamąsias dalis, subtiekėjai, taip pat kita informacija, kuri teisės aktų nustatyta tvarka turi būti skelbiama arba kitokiu būdu viešai prieinama visuomenei, nėra laikoma konfidencialia informacija. Konfidencialią informaciją sudaro, visų pirma, komercinė (gamybinė) paslaptis ir konfidencialieji pasiūlymų aspektai. Informacija, kurią viešai skelbti įpareigoja Lietuvos Respublikos įstatymai, negali būti tiekėjo nurodoma kaip konfidenciali, todėl, tiekėjui nurodžius tokią informaciją kaip konfidencialią, perkančioji organizacija turi teisę ją skelbti. Jei tiekėjas nenurodo konfidencialios informacijos, laikoma, kad konfidencialios informacijos tiekėjo pasiūlyme nėra. Vadovaujantis Informacijos viešinimo Centrinėje viešųjų pirkimų informacinėje sistemoje tvarkos aprašu, patvirtintu Viešųjų pirkimų tarnybos direktoriaus 2017 m. birželio 19 d. įsakymu Nr. 1S-91 „Dėl Informacijos viešinimo Centrinėje viešųjų pirkimų informacinėje sistemoje tvarkos aprašo patvirtinimo“, perkančioji organizacija laimėjusio dalyvio pasiūlymą, išskyrus informaciją, kurią tiekėjas nurodė kaip konfidencialią, paskelbs CVP IS.
A51: Tiekėjo arba jo įgalioto asmens pareigų pavadinimas: | E51: Generalinė direktorė
A53: Pasirašančio asmens vardas ir pavardė: | E53: Rasa Narkienė
A100: 5437 2021-07-12 10:39:35
